fUSD/lending_fUSD_20250820
["ID","MTS","AMOUNT","RATE_DAILY","PERIOD"]
[380391447,1755723064689,-400.0,0.00030136,120]
[380391448,1755723064699,-400.0,0.00030136,120]
[380391449,1755723064709,-400.0,0.00030136,120]
[380391450,1755723064719,-400.0,0.00030136,120]
[380391451,1755723064729,-911.78,0.00030136,120]
[380391452,1755723064739,-400.0,0.00030136,120]
[380391453,1755723064749,-400.0,0.00030136,120]
[380391454,1755723064758,-400.0,0.00030136,120]
[380391455,1755723064768,-600.63,0.00030136,120]
[380391456,1755723064778,-1120.16,0.00030136,120]
[380391457,1755723064788,-1194.28,0.00030136,120]
[380391458,1755723064799,-1048.63,0.00030136,120]
[380391459,1755723064809,-400.0,0.00030136,120]
[380391460,1755723064819,-793.44,0.00030136,120]
[380391461,1755723064828,-4533.46,0.00030136,15]
[380391462,1755723064838,-529.79,0.00030136,120]
[380391463,1755723064848,-581.89,0.00030136,120]
[380391464,1755723064857,-400.0,0.00030136,120]
[380391465,1755723064867,-400.0,0.00030136,120]
[380391466,1755723064876,-897.05,0.00030136,120]
[380391467,1755723064886,-1174.2,0.00030136,120]
[380391468,1755723064896,-770.69,0.00030136,120]
[380391469,1755723064906,-765.54,0.00030136,120]
[380391470,1755723064915,-400.0,0.00030136,120]
[380391471,1755723064925,-400.0,0.00030136,120]
[380391472,1755723064935,-1349.34,0.00030136,120]
[380391473,1755723065071,-400.0,0.00030136,2]
[380391474,1755723065081,-400.0,0.00030136,120]
[380391475,1755723065091,-400.0,0.00030136,120]
[380391476,1755723065100,-470.73,0.00030136,120]
[380391477,1755723065110,-400.0,0.00030136,120]
[380391478,1755723065120,-400.0,0.00030136,120]
[380391479,1755723065129,-646.55,0.00030136,120]
[380391480,1755723065139,-761.07,0.00030136,120]
[380391481,1755723065149,-474.56,0.00030136,120]
[380391482,1755723065158,-400.0,0.00030136,120]
[380391483,1755723065168,-181.34,0.00030136,120]
[380391484,1755723065177,-481.17,0.00030136,120]
[380391485,1755723065186,-1108.6,0.00030136,120]
[380391486,1755723065195,-400.0,0.00030136,120]
[380391487,1755723065204,-781.22,0.00030136,120]
[380391488,1755723065213,-529.46,0.00030136,120]
[380391489,1755723065223,-400.0,0.00030136,120]
[380391490,1755723065232,-1042.37,0.00030136,120]
[380391491,1755723065243,-400.0,0.00030136,120]
[380391492,1755723065252,-894.82,0.00030136,120]
[380391493,1755723065262,-409.55,0.00030136,120]
[380391494,1755723065271,-197.58866802,0.00030136,120]
[380391495,1755723065280,-400.0,0.00030136,120]
[380391496,1755723065290,-400.0,0.00030136,120]
[380391497,1755723065300,-662.32,0.00030136,120]
[380391498,1755723065310,-400.0,0.00030136,120]
[380391499,1755723065319,-400.0,0.00030136,120]
[380391500,1755723065329,-626.49,0.00030136,120]
[380391501,1755723065338,-400.0,0.00030136,120]
[380391502,1755723065347,-400.0,0.00030136,120]
[380391503,1755723065357,-445.23,0.00030136,120]
[380391504,1755723065366,-727.31,0.00030136,120]
[380391505,1755723065376,-400.0,0.00030136,120]
[380391506,1755723065385,-586.22,0.00030136,120]
[380391507,1755723065396,-729.55,0.00030136,120]
[380391508,1755723065406,-400.0,0.00030136,120]
[380391509,1755723065417,-945.08,0.00030136,120]
[380391510,1755723065435,-953.12,0.00030136,120]
[380391511,1755723065444,-400.0,0.00030136,120]
[380391512,1755723065454,-1124.05,0.00030136,120]
[380391513,1755723065464,-402.26,0.00030136,120]
[380391514,1755723065475,-645.18,0.00030136,120]
[380391515,1755723065485,-400.0,0.00030136,120]
[380391516,1755723065496,-400.0,0.00030136,120]
[380391517,1755723065507,-400.0,0.00030136,120]
[380391518,1755723065518,-242.02559755,0.00030136,120]
[380391519,1755723065527,-400.0,0.00030136,120]
[380391520,1755723065538,-400.0,0.00030136,120]
[380391521,1755723065547,-1327.9,0.00030136,60]
[380391522,1755723065556,-640.56,0.00030136,120]
[380391523,1755723065566,-400.0,0.00030136,120]
[380391524,1755723065576,-771.21,0.00030136,120]
[380391525,1755723065585,-400.0,0.00030136,120]
[380391526,1755723065594,-400.0,0.00030136,120]
[380391527,1755723065604,-400.0,0.00030136,120]
[380391528,1755723065613,-1072.65,0.00030136,120]
[380391529,1755723065623,-400.0,0.00030136,120]
[380391530,1755723065632,-400.0,0.00030136,120]
[380391531,1755723065642,-400.0,0.00030136,120]
[380391532,1755723065652,-787.38,0.00030136,120]
[380391533,1755723065661,-503.59,0.00030136,120]
[380391534,1755723065671,-419.66,0.00030136,120]
[380391535,1755723065681,-923.22,0.00030136,120]
[380391536,1755723065690,-400.0,0.00030136,120]
[380391537,1755723065699,-400.0,0.00030136,120]
[380391538,1755723065709,-509.84,0.00030136,120]
[380391539,1755723065718,-400.0,0.00030136,120]
[380391540,1755723065727,-400.0,0.00030136,120]
[380391541,1755723065737,-400.0,0.00030136,120]
[380391542,1755723065747,-401.0728275,0.00030136,120]
[380391543,1755723065757,-414.6,0.00030136,120]
[380391544,1755723065767,-228.41162986,0.00030136,120]
[380391545,1755723065777,-400.0,0.00030136,120]
[380391546,1755723065787,-578.74,0.00030136,120]
[380391547,1755723065796,-400.0,0.00030136,120]
[380391548,1755723065807,-400.0,0.00030136,120]
[380391549,1755723065817,-400.0,0.00030136,120]
[380391550,1755723065826,-400.0,0.00030136,120]
[380391551,1755723065836,-400.0,0.00030136,120]
[380391552,1755723065846,-400.0,0.00030136,120]
[380391553,1755723065856,-747.86,0.00030136,120]
[380391554,1755723065865,-400.0,0.00030136,120]
[380391555,1755723065875,-400.0,0.00030136,120]
[380391556,1755723065885,-400.0,0.00030136,120]
[380391557,1755723065895,-400.0,0.00030136,120]
[380391558,1755723065904,-400.0,0.00030136,120]
[380391559,1755723065915,-400.0,0.00030136,120]
[380391560,1755723065925,-400.0,0.00030136,120]
[380391561,1755723065935,-221.92233416,0.00030136,120]
[380391562,1755723065945,-400.0,0.00030136,120]
[380391563,1755723065954,-400.0,0.00030136,120]
[380391564,1755723065963,-400.0,0.00030136,120]
[380391565,1755723065973,-400.0,0.00030136,120]
[380391566,1755723065982,-400.0,0.00030136,120]
[380391567,1755723065992,-400.0,0.00030136,120]
[380391568,1755723066002,-400.0,0.00030136,120]
[380391569,1755723066012,-400.0,0.00030136,30]
[380391570,1755723066021,-400.0,0.00030136,120]
[380391571,1755723066031,-400.0,0.00030136,120]
[380391572,1755723066040,-400.0,0.00030136,120]
[380391573,1755723066049,-400.0,0.00030136,120]
[380391574,1755723066059,-400.0,0.00030136,120]
[380391575,1755723066068,-332.59213663,0.00030136,120]
[380391576,1755723066077,-400.0,0.00030136,120]
[380391577,1755723066087,-400.0,0.00030136,120]
[380391578,1755723066096,-400.0,0.00030136,120]
[380391579,1755723066106,-400.0,0.00030136,120]
[380391580,1755723066115,-400.0,0.00030136,120]
[380391581,1755723066125,-400.0,0.00030136,120]
[380391582,1755723066134,-400.0,0.00030136,120]
[380391583,1755723066144,-400.0,0.00030136,120]
[380391584,1755723066153,-400.0,0.00030136,120]
[380391585,1755723066163,-400.0,0.00030136,120]
[380391586,1755723066172,-400.0,0.00030136,120]
[380391587,1755723066181,-400.0,0.00030136,120]
[380391588,1755723066190,-400.0,0.00030136,120]
[380391589,1755723066199,-400.0,0.00030136,120]
[380391590,1755723066208,-400.0,0.00030136,120]
[380391591,1755723066220,-400.0,0.00030136,120]
[380391592,1755723066230,-400.0,0.00030136,120]
[380391593,1755723066239,-400.0,0.00030136,120]
[380391594,1755723066249,-400.0,0.00030136,120]
[380391595,1755723066261,-400.0,0.00030136,120]
[380391596,1755723066270,-426.67302766,0.00030136,120]
[380391597,1755723066280,-400.0,0.00030136,120]
[380391598,1755723066289,-400.0,0.00030136,120]
[380391599,1755723066299,-400.0,0.00030136,120]
[380391601,1755723066309,-400.0,0.00030136,120]
[380391602,1755723066318,-151.41,0.00030136,120]
[380391603,1755723066328,-400.0,0.00030136,120]
[380391604,1755723066338,-194.86649702,0.00030136,120]
[380391605,1755723066348,-335.89395016,0.00030136,120]
[380391606,1755723066358,-400.0,0.00030136,120]
[380391607,1755723066367,-400.0,0.00030136,120]
[380391608,1755723066377,-400.0,0.00030136,120]
[380391609,1755723066386,-500.0,0.00030136,120]
[380391610,1755723066395,-400.0,0.00030136,120]
[380391611,1755723066405,-400.0,0.00030136,120]
[380391612,1755723066416,-400.0,0.00030136,120]
[380391613,1755723066434,-596.87,0.00030136,120]
[380391614,1755723066446,-400.0,0.00030136,120]
[380391615,1755723066455,-400.0,0.00030136,120]
[380391616,1755723066465,-240.03458666,0.00030136,120]
[380391617,1755723066475,-400.0,0.00030136,120]
[380391618,1755723066485,-500.0,0.00030136,120]
[380391619,1755723066494,-500.0,0.00030136,120]
[380391620,1755723066504,-500.0,0.00030136,120]
[380391621,1755723066513,-500.0,0.00030136,120]
[380391622,1755723066523,-500.0,0.00030136,120]
[380391623,1755723066533,-500.0,0.00030136,120]
[380391624,1755723066542,-500.0,0.00030136,120]
[380391625,1755723066551,-500.0,0.00030136,120]
[380391626,1755723066560,-500.0,0.00030136,120]
[380391627,1755723066570,-500.0,0.00030136,120]
[380391628,1755723066579,-500.0,0.00030136,120]
[380391629,1755723066589,-500.0,0.00030136,120]
[380391630,1755723066598,-541.03366054,0.00030136,120]
[380391631,1755723066608,-480.47904,0.00030136,120]
[380391632,1755723066618,-500.0,0.00030136,120]
[380391633,1755723066627,-500.0,0.00030136,120]
[380391634,1755723066637,-500.0,0.00030136,120]
[380391635,1755723066647,-500.0,0.00030136,120]
[380391636,1755723066656,-500.0,0.00030136,120]
[380391637,1755723066666,-500.0,0.00030136,120]
[380391638,1755723066675,-500.0,0.00030136,120]
[380391639,1755723066685,-500.0,0.00030136,120]
[380391640,1755723066694,-464.82839027,0.00030136,120]
[380391641,1755723066704,-400.0,0.00030136,120]
[380391642,1755723066714,-400.0,0.00030136,120]
[380391643,1755723066724,-400.0,0.00030136,120]
[380391644,1755723066734,-460.0,0.00030136,120]
[380391645,1755723066744,-400.0,0.00030136,120]
[380391646,1755723066754,-460.0,0.00030136,120]
[380391647,1755723066763,-460.0,0.00030136,120]
[380391648,1755723066773,-460.0,0.00030136,120]
[380391649,1755723066782,-530.49,0.00030136,120]
[380391650,1755723066792,-460.0,0.00030136,120]
[380391651,1755723066802,-492.38437555,0.00030136,120]
[380391652,1755723066811,-460.0,0.00030136,120]
[380391653,1755723066820,-493.26704288,0.00030136,120]
[380391654,1755723066829,-460.0,0.00030136,120]
[380391655,1755723066838,-400.0,0.00030136,120]
[380391656,1755723066848,-460.0,0.00030136,120]
[380391657,1755723066857,-460.0,0.00030136,120]
[380391658,1755723066866,-591.31,0.00030136,120]
[380391659,1755723066876,-400.0,0.00030136,120]
[380391660,1755723066885,-460.0,0.00030136,120]
[380391661,1755723066894,-460.0,0.00030136,120]
[380391662,1755723066903,-400.0,0.00030136,120]
[380391663,1755723066913,-460.0,0.00030136,120]
[380391664,1755723066922,-460.0,0.00030136,120]
[380391665,1755723066932,-464.58,0.00030136,120]
[380391666,1755723066941,-303.70417773,0.00030136,120]
[380391667,1755723066950,-460.0,0.00030136,120]
[380391668,1755723066959,-460.0,0.00030136,120]
[380391669,1755723066968,-460.0,0.00030136,120]
[380391670,1755723066978,-460.0,0.00030136,120]
[380391671,1755723066986,-460.0,0.00030136,120]
[380391672,1755723066997,-249.35451875,0.00030136,120]
[380391673,1755723067006,-460.0,0.00030136,120]
[380391674,1755723067015,-400.0,0.00030136,120]
[380391675,1755723067025,-400.0,0.00030136,120]
[380391676,1755723067034,-400.0,0.00030136,120]
[380391677,1755723067043,-400.0,0.00030136,120]
[380391678,1755723067053,-490.0,0.00030136,120]
[380391679,1755723067062,-428.6714608,0.00030136,120]
[380391680,1755723067072,-400.0,0.00030136,120]
[380391681,1755723067081,-400.0,0.00030136,120]
[380391682,1755723067091,-2083.33,0.00030136,120]
[380391683,1755723067100,-400.0,0.00030136,120]
[380391684,1755723067109,-400.0,0.00030136,120]
[380391685,1755723067118,-400.0,0.00030136,120]
[380391686,1755723067127,-400.0,0.00030136,120]
[380391687,1755723067136,-400.0,0.00030136,120]
[380391688,1755723067146,-400.0,0.00030136,120]
[380391689,1755723067155,-400.0,0.00030136,120]
[380391690,1755723067165,-400.0,0.00030136,120]
[380391691,1755723067174,-400.0,0.00030136,120]
[380391692,1755723067183,-400.0,0.00030136,120]
[380391693,1755723067193,-400.0,0.00030136,60]
[380391694,1755723067201,-400.0,0.00030136,120]
[380391695,1755723067211,-400.0,0.00030136,120]
[380391696,1755723067220,-400.0,0.00030136,120]
[380391697,1755723067230,-400.0,0.00030136,120]
[380391698,1755723067239,-400.0,0.00030136,120]
[380391699,1755723067250,-400.0,0.00030136,120]
[380391700,1755723067259,-400.0,0.00030136,120]
[380391701,1755723067269,-400.0,0.00030136,120]
[380391702,1755723067284,-400.0,0.00030136,120]
[380391703,1755723067294,-400.0,0.00030136,120]
[380391704,1755723067304,-400.0,0.00030136,120]
[380391705,1755723067314,-400.0,0.00030136,120]
[380391706,1755723067325,-400.0,0.00030136,120]
[380391707,1755723067335,-400.0,0.00030136,90]
[380391708,1755723067345,-400.0,0.00030136,120]
[380391709,1755723067354,-400.0,0.00030136,120]
[380391710,1755723067363,-400.0,0.00030136,120]
[380391711,1755723067372,-400.0,0.00030136,120]
[380391712,1755723067382,-400.0,0.00030136,120]
[380391713,1755723067391,-170.61557065,0.00030136,120]
[380391714,1755723069076,-154.38,0.000219,2]
[380391715,1755723069086,-463.15,0.000236,7]
[380391716,1755723069096,-2222.22,0.00024735,2]
[380391717,1755723069105,-2222.22,0.00026103,7]
[380391718,1755723069115,-2222.22,0.00027397,7]
[380391719,1755723069124,-2222.22,0.00028838,30]
[380391720,1755723069133,-385.96,0.000299,14]
[380391721,1755723069142,-229.38442935,0.00030136,120]
[380391722,1755723069151,-400.0,0.00030136,120]
[380391723,1755723069160,-400.0,0.00030136,120]
[380391724,1755723069170,-400.0,0.00030136,120]
[380391725,1755723069179,-400.0,0.00030136,120]
[380391726,1755723069189,-400.0,0.00030136,120]
[380391727,1755723069198,-400.0,0.00030136,120]
[380391728,1755723069208,-400.0,0.00030136,120]
[380391729,1755723069218,-400.0,0.00030136,120]
[380391730,1755723069227,-400.0,0.00030136,120]
[380391731,1755723069236,-400.0,0.00030136,120]
[380391732,1755723069246,-400.0,0.00030136,120]
[380391733,1755723069256,-445.87,0.00030136,120]
[380391734,1755723069265,-400.0,0.00030136,120]
[380391735,1755723069274,-13.69452947,0.00030136,120]
[380391736,1755723069286,-386.30547053,0.00030136,120]
[380391737,1755723069295,-400.0,0.00030136,120]
[380391738,1755723069304,-212.9121858,0.00030136,120]
[380391739,1755723069406,-187.0878142,0.00030136,120]
[380391740,1755723069415,-400.0,0.00030136,120]
[380391741,1755723069431,-400.0,0.00030136,120]
[380391742,1755723069441,-400.0,0.00030136,120]
[380391743,1755723069450,-329.79857668,0.00030136,120]
[380391744,1755723069462,-70.20142332,0.00030136,120]
[380391745,1755723069471,-220.87357668,0.00030136,120]
[380391746,1755723069483,-179.12642332,0.00030136,120]
[380391747,1755723069493,-400.0,0.00030136,120]
[380391748,1755723069503,-463.88,0.00030136,120]
[380391749,1755723069513,-38.16357668,0.00030136,120]
[380391750,1755723069524,-361.83642332,0.00030136,120]
[380391751,1755723069534,-400.0,0.00030136,120]
[380391752,1755723069543,-400.0,0.00030136,120]
[380391753,1755723069552,-355.63304006,0.00030136,120]
[380391754,1755723069652,-44.36695994,0.00030136,120]
[380391755,1755723069661,-216.77868416,0.00030136,120]
[380391756,1755723069673,-183.22131584,0.00030136,120]
[380391757,1755723069683,-95.33426528,0.00030136,120]
[380391758,1755723069694,-389.40573472,0.00030136,120]
[380391759,1755723069704,-400.0,0.00030136,120]
[380391760,1755723069713,-159.55426528,0.00030136,120]
[380391761,1755723069725,-449.53573472,0.00030136,120]
[380391762,1755723069734,-400.0,0.00030136,120]
[380391763,1755723069744,-400.0,0.00030136,120]
[380391764,1755723069753,-459.98,0.00030136,120]
[380391765,1755723069763,-400.0,0.00030136,120]
[380391766,1755723069772,-400.0,0.00030136,120]
[380391767,1755723069782,-400.0,0.00030136,120]
[380391768,1755723069792,-400.0,0.00030136,120]
[380391769,1755723069801,-400.0,0.00030136,120]
[380391770,1755723069811,-518.87,0.00030136,120]
[380391771,1755723069821,-400.0,0.00030136,120]
[380391772,1755723069830,-400.0,0.00030136,120]
[380391773,1755723069841,-400.0,0.00030136,120]
[380391774,1755723069850,-413.61,0.00030136,120]
[380391775,1755723069861,-400.0,0.00030136,120]
[380391776,1755723069871,-400.0,0.00030136,120]
[380391777,1755723069881,-400.0,0.00030136,120]
[380391778,1755723069891,-400.0,0.00030136,120]
[380391779,1755723069902,-400.0,0.00030136,120]
[380391780,1755723069911,-400.0,0.00030136,120]
[380391781,1755723069922,-437.58,0.00030136,120]
[380391782,1755723069932,-590.19,0.00030136,120]
[380391783,1755723069942,-400.0,0.00030136,120]
[380391784,1755723069951,-400.0,0.00030136,120]
[380391785,1755723069960,-400.0,0.00030136,120]
[380391786,1755723069969,-400.0,0.00030136,120]
[380391787,1755723069979,-400.0,0.00030136,120]
[380391788,1755723069988,-400.0,0.00030136,120]
[380391789,1755723069998,-400.0,0.00030136,120]
[380391790,1755723070008,-594.25,0.00030136,120]
[380391791,1755723070017,-400.0,0.00030136,120]
[380391792,1755723070027,-438.55,0.00030136,120]
[380391793,1755723070036,-400.0,0.00030136,120]
[380391794,1755723070046,-407.73,0.00030136,120]
[380391795,1755723070055,-638.28,0.00030136,120]
[380391796,1755723070064,-400.0,0.00030136,120]
[380391797,1755723070074,-561.03,0.00030136,120]
[380391798,1755723070084,-400.0,0.00030136,120]
[380391799,1755723070093,-400.0,0.00030136,120]
[380391800,1755723070103,-400.0,0.00030136,120]
[380391801,1755723070112,-400.0,0.00030136,120]
[380391802,1755723070122,-400.0,0.00030136,120]
[380391803,1755723070131,-445.61,0.00030136,120]
[380391804,1755723070141,-450.27,0.00030136,120]
[380391805,1755723070150,-400.0,0.00030136,120]
[380391806,1755723070160,-400.0,0.00030136,120]
[380391807,1755723070170,-400.0,0.00030136,120]
[380391808,1755723070179,-400.0,0.00030136,120]
[380391809,1755723070189,-627.63,0.00030136,120]
[380391810,1755723070198,-312.68086013,0.00030136,120]
[380391811,1755723070247,-199.99,0.00027855,2]
[380391812,1755723070256,-87.31913987,0.00030136,120]
[380391813,1755723070267,-603.11,0.00030136,120]
[380391814,1755723070277,-400.0,0.00030136,120]
[380391815,1755723070286,-400.0,0.00030136,120]
[380391816,1755723070297,-622.25,0.00030136,120]
[380391817,1755723070307,-400.0,0.00030136,120]
[380391818,1755723070317,-400.0,0.00030136,120]
[380391819,1755723070326,-752.46,0.00030136,120]
[380391820,1755723070336,-400.0,0.00030136,120]
[380391821,1755723070345,-400.0,0.00030136,120]
[380391822,1755723070355,-75.16642013,0.00030136,120]
[380391823,1755723070379,-396.86652236,0.00027635,7]
[380391824,1755723070391,-447.10942235,0.00027635,7]
[380391825,1755723070402,-199.99,0.000289,2]
[380391826,1755723070412,-354.18357987,0.00030136,120]
[380391827,1755723070422,-386.69650483,0.00030136,120]
[380391839,1755723265818,-2000.0,0.00016641,2]
[380391840,1755723377499,247.47,0.00025801,120]
[380391842,1755723587339,-229.38442935,0.00013699,2]
[380391843,1755723595856,-400.0,0.00013699,2]
[380391844,1755723601740,-29.28557065,0.00013699,2]
[380391845,1755723601787,-341.4288587,0.00019327,2]
[380391846,1755723608945,-150.0,0.00015068,2]
[380391847,1755723608969,-100.0,0.00015068,2]
[380391848,1755723882671,325.46342515,0.00027397,120]
[380391849,1755723958843,-400.0,0.00015068,2]
[380391850,1755723966125,-400.0,0.00016575,2]
[380391851,1755723974214,-400.0,0.00016575,2]
[380391852,1755723981711,-400.0,0.00016575,2]
[380391853,1755723988977,-400.0,0.00016575,2]
[380391856,1755723996128,-45.87,0.00016575,2]
[380391857,1755723996156,-354.13,0.00016575,2]
[380391858,1755724003425,-400.0,0.00020187,2]
[380391859,1755724068871,1500.0,0.00025128,120]
[380391863,1755724232215,-156.587,0.00019178,2]
[380391864,1755724232225,-258.67,0.00020187,2]
[380391865,1755724232234,-429.02616548,0.00021095,2]
[380391866,1755724232247,-414.94977923,0.00021095,2]
[380391867,1755724232256,-150.0,0.00021918,2]
[380391868,1755724232265,-129.95042077,0.00022,2]
[380391869,1755724232276,-328.51888616,0.00022,2]
[380391870,1755724232286,-212.04014818,0.00022,2]
[380391871,1755724232296,-150.0,0.00022,2]
[380391872,1755724232306,-337.77313003,0.00022,2]
[380391873,1755724232319,-252.22686997,0.00022,2]
[380391874,1755724232329,-2222.22,0.000221,2]
[380391875,1755724232339,-590.0,0.00022192,7]
[380391876,1755724232349,-590.0,0.00023014,7]
[380391877,1755724232359,-155.76,0.00023196,2]
[380391878,1755724232369,-300.0,0.00023365,2]
[380391879,1755724232378,-2222.22,0.00023366,2]
[380391880,1755724232387,-170.24183172,0.000237,45]
[380391881,1755724232398,-162.1,0.000238,7]
[380391882,1755724232407,-184.0,0.00023892,3]
[380391883,1755724232417,-593.0,0.00024164,7]
[380391884,1755724232427,-170.24183165,0.00024167,46]
[380391885,1755724232436,-168.0,0.00024198,2]
[380391886,1755724232446,-446.4,0.00024237,2]
[380391887,1755724232456,-316.0,0.00024323,2]
[380391888,1755724232465,-956.75213516,0.00024497,2]
[380391889,1755724232475,-170.24183165,0.00024633,48]
[380391890,1755724232484,-1982.70765346,0.00024658,15]
[380391891,1755724232497,-17.29234654,0.00024658,15]
[380391892,1755724232506,-671.83232349,0.00024732,2]
[380391893,1755724232517,-1550.38767651,0.00024732,2]
[380391894,1755724232527,-300.0,0.00024798,2]
[380391895,1755724232536,-900.0,0.00024799,9]
[380391896,1755724232545,-900.0,0.00024799,9]
[380391897,1755724232555,-381.57394348,0.00024799,9]
[380391898,1755724232566,-518.42605652,0.00024799,9]
[380391899,1755724232575,-900.0,0.00024799,9]
[380391900,1755724232584,-900.0,0.00024799,9]
[380391901,1755724232593,-900.0,0.00024799,9]
[380391902,1755724232602,-900.0,0.00024799,9]
[380391903,1755724232612,-900.0,0.00024799,9]
[380391904,1755724232621,-200.0,0.00024819,2]
[380391905,1755724232632,-250.0,0.00024823,2]
[380391906,1755724232641,-151.0,0.00024885,2]
[380391907,1755724232650,-151.0,0.00024885,2]
[380391908,1755724232659,-151.0,0.00024885,2]
[380391909,1755724232668,-151.0,0.00024885,2]
[380391910,1755724232678,-151.0,0.00024885,2]
[380391911,1755724232687,-151.0,0.00024885,2]
[380391912,1755724232696,-151.0,0.00024885,2]
[380391914,1755724232705,-500.0,0.00024885,2]
[380391916,1755724232714,-151.0,0.00024885,2]
[380391918,1755724232723,-500.0,0.00024885,2]
[380391920,1755724232733,-151.0,0.00024885,2]
[380391922,1755724232743,-151.0,0.00024885,2]
[380391924,1755724232753,-151.0,0.00024885,2]
[380391926,1755724232767,-173.32783068,0.00024885,2]
[380391928,1755724232781,-600.0,0.00024885,2]
[380391929,1755724232791,-19770.2828081,0.000249,2]
[380391930,1755724232803,-3168.57244422,0.000249,2]
[380391931,1755724232816,-23115.12075722,0.000249,2]
[380391932,1755724232825,-168.0,0.00024921,2]
[380391933,1755724232834,-199.99,0.00024997,2]
[380391934,1755724232843,-400.0,0.00025,2]
[380391935,1755724232854,-1860.0,0.00025,2]
[380391936,1755724232864,-170.24183165,0.000251,49]
[380391937,1755724232873,-1707.59,0.00025156,30]
[380391938,1755724232883,-1000.0,0.00025166,2]
[380391939,1755724232892,-150.0,0.0002524,2]
[380391940,1755724232902,-705.68900804,0.00025288,2]
[380391942,1755724232913,-777.33099196,0.00025288,2]
[380391944,1755724232922,-867.60243162,0.00025326,2]
[380391946,1755724232934,-556.68265327,0.00025326,2]
[380391948,1755724232946,-993.770628,0.00025326,2]
[380391950,1755724232957,-892.29370487,0.00025326,2]
[380391952,1755724232968,-1689.65058224,0.00025326,2]
[380391954,1755724232978,-420.0,0.00025355,2]
[380391956,1755724232987,-160.0,0.00025422,7]
[380391958,1755724233000,-166.58094444,0.00025425,30]
[380391959,1755724233010,-151.0,0.00025433,2]
[380391960,1755724233019,-600.0,0.00025433,2]
[380391961,1755724233028,-1000.0,0.00025489,2]
[380391962,1755724233038,-168.0,0.00025536,2]
[380391963,1755724233048,-170.24183165,0.00025567,50]
[380391964,1755724233058,-167.7,0.00025624,2]
[380391965,1755724233067,-1278.23301217,0.00025638,4]
[380391966,1755724233077,-168.88,0.0002569,2]
[380391967,1755724233086,-660.17,0.00025697,2]
[380391968,1755724233096,-666.0,0.00025764,3]
[380391969,1755724233107,-590.0,0.00025775,7]
[380391970,1755724233116,-3711.2187,0.00025789,2]
[380391971,1755724233126,-151.0,0.00025889,2]
[380391972,1755724233137,-3566.4291876,0.00025889,2]
[380391973,1755724233147,-707.29112854,0.00025889,2]
[380391974,1755724233157,-300.0,0.00025889,2]
[380391975,1755724233167,-277.35679052,0.00025889,2]
[380391976,1755724233177,-721.12765535,0.00025889,2]
[380391977,1755724233187,-600.0,0.00025981,2]
[380391978,1755724233198,-1052.84,0.00026,2]
[380391979,1755724233209,-170.24183165,0.00026033,51]
[380391980,1755724233218,-2222.22,0.00026097,7]
[380391981,1755724233227,-173.08,0.00026192,2]